Cogmind - Beta 9.4 @@@ ROGUE MODE // 2020.03.29 @ 21:10:21 // Winter2019/RPGLIKE Player: IAMCRAIG Result: Destroyed by G-47 Trooper with Particle Gun Performance ------------- Evolutions (2) 1000 Regions Visited (7) 1400 Robots Destroyed (153) 765 Value Destroyed (3536) 3536 Prototype IDs (33) 660 Alien Tech Used (0) 0 Bonus (714) 714 TOTAL SCORE: 8075 Bonus ------- High Alert Combat Kills 411 Follower Combat Kills 28 Aligned with FarCom 300 Friendly Fire -25 Cogmind --------- Core Integrity 0/650 Matter 159/300 Energy 438/460 System Corruption 0% Temperature Cool (37) Movement Hovering (58) Location -8/Materials Parts ------- > --- POWER (2) -------- Cooled Ion Engine Cooled Ion Engine > --- PROPULSION (3) --- Hover Unit Improved Hover Unit Combat Airjet > --- UTILITY (8) ------ Improved Heat Sink Advanced Visual Processing Unit Targeting Computer Armor Integrity Analyzer Maneuvering Thrusters Hacking Suite System Shield > --- WEAPON (5) ------- Advanced Beam Cannon Advanced Beam Cannon Advanced Beam Cannon Rocket Launcher Katana > --- INVENTORY (4) ---- High-capacity Battery (400) High-capacity Matter Pod (200) Advanced Weight Redist. System Improved Signal Interpreter Peak State ------------ > --- POWER ------------ Cooled Ion Engine Cooled Ion Engine > --- PROPULSION ------- Hover Unit Improved Hover Unit Combat Airjet > --- UTILITY ---------- Improved Heat Sink Advanced Visual Processing Unit Targeting Computer Armor Integrity Analyzer Maneuvering Thrusters Improved Light Armor Plating Hacking Suite System Shield > --- WEAPON ----------- Advanced Beam Cannon Advanced Beam Cannon Rocket Launcher Katana Katana > --- INVENTORY -------- High-capacity Battery High-capacity Matter Pod Weight Redist. System Improved Signal Interpreter [Rating: 49] Favorites ----------- Power Cooled Ion Engine Engine Cooled Ion Engine Power Core Light Nuclear Core Propulsion Hover Unit Treads Light Treads Wheel Wheel Hover Unit Hover Unit Flight Unit Flight Unit Utility Targeting Computer Device Improved Heat Sink Processor Targeting Computer Hackware Hacking Suite Protection Improved Light Armor Plating Weapon Rocket Launcher Energy Gun Beamcaster Energy Cannon Advanced Beam Cannon Launcher Rocket Launcher Slashing Weapon Katana Build | -11 -10 -10 -9 -9 -9 -8 -8 ------- Run | Scr Mat Min Mat Min Exi Min Mat Slots Evolved 14 | 3 2 1 3 . . 3 2 Power 1 | . . . . . . 1 . Propulsion 2 | 1 1 . . . . . . Utility 7 | 1 1 1 3 . . 1 . Weapon 4 | 1 . . . . . 1 2 Parts Attached 72 | 6 16 10 22 . . 6 12 Power 8 | 1 2 1 3 . . 1 . Engine 6 | 1 2 . 2 . . 1 . Core 2 | . . 1 1 . . . . Reactor . | . . . . . . . . Propulsion 19 | 2 7 4 5 . . . 1 Treads 1 | 1 . . . . . . . Leg . | . . . . . . . . Wheel 1 | 1 . . . . . . . Hover 6 | . . 1 4 . . . 1 Flight 11 | . 7 3 1 . . . . Utility 23 | 1 5 3 9 . . 2 3 Device 10 | 1 2 2 4 . . . 1 Storage . | . . . . . . . . Processor 5 | . 3 . . . . 2 . Hackware 3 | . . . 1 . . . 2 Protection 5 | . . 1 4 . . . . Artifact . | . . . . . . . . Weapon 22 | 2 2 2 5 . . 3 8 Energy Gun 11 | 2 1 1 4 . . . 3 Energy Cannon 4 | . . . . . . . 4 Ballistic Gun . | . . . . . . . . Ballistic Cannon . | . . . . . . . . Launcher 4 | . 1 1 1 . . . 1 Special Weapon . | . . . . . . . . Impact Weapon . | . . . . . . . . Slashing Weapon 3 | . . . . . . 3 . Piercing Weapon . | . . . . . . . . Special Melee Weapon . | . . . . . . . . Unidentified Prototypes 7 | . . . 5 . . . 2 Parts Lost 1 | . . . 1 . . . . Power . | . . . . . . . . Propulsion . | . . . . . . . . Utility 1 | . . . 1 . . . . Weapon . | . . . . . . . . Highest Loss Streak 1 | . . . 1 . . . . Average Slot Usage (%) 98 | . 96 99 98 100 100 100 99 Engine 7 | . 12 2 6 7 7 6 11 Core 1 | . . 7 2 . . . . Treads 1 | . 8 . . . . . . Wheel 1 | . 8 . . . . . . Hover 14 | . . . 21 23 23 20 16 Flight 7 | . 12 29 3 . . . . Device 14 | . 6 10 16 23 23 20 11 Processor 17 | . 22 20 16 15 15 17 16 Hackware 4 | . . . 6 7 7 6 10 Protection 6 | . . 8 7 7 7 6 4 Energy Gun 8 | . 13 10 8 7 7 6 3 Launcher 8 | . 11 10 8 7 7 6 5 Slashing Weapon 1 | . . . . . . 5 9 Naked Turns . | . . . . . . . . Heaviest Build 39 | 10 12 17 22 22 22 32 39 Greatest Support 45 | 10 20 27 45 23 23 45 45 Greatest Overweight (x) 3 | 2 3 . 1 . . . . Average Overweight (x) . | . . . . . . . . Largest Inventory Capacity 4 | . 2 3 4 4 4 4 4 Average Capacity 3 | . . 2 3 4 4 4 4 Most Carried 4 | . 2 3 4 4 4 4 4 Average Carried 3 | . . 2 3 3 4 3 3 Final Capacity 4 | . 2 3 4 4 4 4 4 Final Carried 4 | . 2 3 4 4 4 4 4 Class Distribution -------------------- 81% | Scavenger-Mutant 15% | Mutant Dominant Class ---------------- Mutant | -10/Materials Scavenger-Mutant | -10/Mines Scavenger-Mutant | -9/Materials Scavenger-Mutant | -9/Mines Scavenger-Mutant | -9/Exiles Scavenger-Mutant | -8/Mines Scavenger-Mutant | -8/Materials Resources | -11 -10 -10 -9 -9 -9 -8 -8 ----------- Run | Scr Mat Min Mat Min Exi Min Mat Matter Collected 2232 | 260 520 706 454 33 . 94 165 Remotely 181 | 121 60 . . . . . . Salvage Created 4193 | 135 770 223 1351 263 . 566 885 Parts 257 | 10 32 13 109 14 . 28 51 Haulers Intercepted 10 | . 2 . 6 . . . 2 Recyclers Shooed 5 | . 3 . 1 . . . 1 Parts Field Recycled . | . . . . . . . . Retrieved Matter . | . . . . . . . . Parts Self-Destructed . | . . . . . . . . Prevented . | . . . . . . . . Kills | -11 -10 -10 -9 -9 -9 -8 -8 ------- Run | Scr Mat Min Mat Min Exi Min Mat Combat Hostiles Destroyed 101 | . 10 19 35 8 . 10 19 Melee 4 | . . . . . . 3 1 Guns 41 | . 5 6 25 5 . . . Cannons 4 | . . . . . . . 4 AOE 52 | . 5 13 10 3 . 7 14 Classes Destroyed 15 | 2 5 1 6 . . 1 . Worker 13 | . 2 1 4 1 . 3 2 Builder 5 | . . . 1 . . 2 2 Tunneler 4 | 3 . . . . . 1 . Hauler 10 | . 2 . 6 . . . 2 Recycler 9 | 1 5 1 . . . 2 . Mechanic 1 | . . . 1 . . . . Operator 1 | . . . 1 . . . . Watcher 9 | . 3 . 5 . . . 1 Swarmer 25 | . 6 3 4 4 . 6 2 Grunt 38 | . 4 1 17 2 . 2 12 Brawler 6 | . . . 4 1 . . 1 Duelist 2 | . . . 1 . . 1 . Sentry 14 | . . . 9 1 . . 4 Hunter 1 | . . . . . . 1 . Assembled 15 | . . 15 . . . . . Best Kill Streak 15 | 3 4 7 15 4 . 13 10 Combat Bots Only 9 | . 3 7 9 4 . 8 8 Max Kills in Single Turn 4 | 1 2 2 3 2 . 4 2 Gunslinging . | . . . . . . . . Exploded 3 | . 2 2 2 2 . 3 2 Melee 1 | . . . . . . 1 1 Uniques/NPCs Destroyed . | . . . . . . . . Combat | -11 -10 -10 -9 -9 -9 -8 -8 -------- Run | Scr Mat Min Mat Min Exi Min Mat Damage Taken 2948 | . 335 556 957 107 . 317 676 Core 2204 | . 277 400 678 73 . 235 541 Absorbed by Shields . | . . . . . . . . Redirected to Core 1746 | . 181 324 529 66 . 197 449 Core Remaining (%) 75 | 100 . 64 . . . 62 . Volleys Fired 406 | 10 117 91 128 22 . 13 25 Largest 3 | 2 2 1 1 1 . 1 3 Hottest 204 | 100 100 75 75 75 . 75 204 Shots Fired 435 | 20 118 91 128 22 . 13 43 Gun 291 | 20 102 27 114 19 . 9 . Cannon 27 | . . . . . . . 27 Launcher 117 | . 16 64 14 3 . 4 16 Special . | . . . . . . . . Kinetic . | . . . . . . . . Thermal 214 | 20 24 1 114 19 . 9 27 Explosive 117 | . 16 64 14 3 . 4 16 Electromagnetic 104 | . 78 26 . . . . . Robot Hit Streak 14 | 6 14 11 12 10 . 4 11 Robot Miss Streak 4 | 1 3 4 3 4 . 3 2 Penetration Max . | . . . . . . . . Secondary Targets . | . . . . . . . . Shots Hit Robots 237 | 14 42 20 83 13 . 22 43 Core Hits 212 | 5 30 38 61 10 . 22 46 Critical Hits 1 | . . . . . . 1 . Critical Kills 1 | . . . . . . 1 . Critical Parts Destroyed . | . . . . . . . . Melee Attacks 54 | . . . . . . 30 24 Impact . | . . . . . . . . Slashing 54 | . . . . . . 30 24 Piercing . | . . . . . . . . Sneak Attacks 12 | . . . . . . 8 4 Combat Hostiles . | . . . . . . . . Follow-up Attacks 2 | . . . . . . . 2 Damage Inflicted 10669 | 188 1292 1108 3436 504 . 1596 2545 Guns 3206 | 188 596 219 1764 314 . 125 . Cannons 342 | . . . . . . . 342 Explosions 5232 | . 696 889 1659 190 . 446 1352 Melee 1876 | . . . . . . 1025 851 Ramming 13 | . . . 13 . . . . Kinetic . | . . . . . . . . Thermal 3098 | 188 325 . 1804 314 . 125 342 Explosive 5063 | . 584 889 1602 190 . 446 1352 Electromagnetic 619 | . 383 219 17 . . . . Impact . | . . . . . . . . Slashing 1876 | . . . . . . 1025 851 Piercing . | . . . . . . . . Highest Corruption . | . . . . . . . . Average Corruption . | . . . . . . . . Corruption Purged . | . . . . . . . . Overload Shots . | . . . . . . . . Overflow Damage 412 | . 42 27 22 . . 144 177 Projectiles . | . . . . . . . . Explosions 119 | . 42 27 22 . . . 28 Melee 293 | . . . . . . 144 149 Knockbacks . | . . . . . . . . Impact . | . . . . . . . . Kinetic . | . . . . . . . . Secondary . | . . . . . . . . Self-Inflicted Damage 187 | . 1 39 45 33 . 46 23 Shots 10 | . 1 2 3 1 . 2 1 Rammed 1 | . . . 1 . . . . Targets Rammed 1 | . . . 1 . . . . Kicked . | . . . . . . . . Crushed . | . . . . . . . . Highest Temperature 172 | 156 60 101 172 13 . 1 108 Average Temperature 36 | 85 15 24 58 6 . 1 37 Received Heat Transfer 835 | . 51 94 330 18 . 9 333 Siege Activations . | . . . . . . . . Robots Corrupted 1 | . 1 . . . . . . Combat Hostiles . | . . . . . . . . Parts Fried 2 | . 2 . . . . . . Impact Corruptions . | . . . . . . . . Robots Melted . | . . . . . . . . Combat Hostiles . | . . . . . . . . Parts Melted 3 | . . . 2 1 . . . Heat Transferred 5650 | 555 729 . 3034 518 . 222 592 Parts Sabotaged . | . . . . . . . . Parts Stolen . | . . . . . . . . Parts Stripped . | . . . . . . . . Power Chain Reactions 3 | . 1 . 2 . . . . Missiles Intercepted . | . . . . . . . . Alert | -11 -10 -10 -9 -9 -9 -8 -8 ------- Run | Scr Mat Min Mat Min Exi Min Mat Peak Influence 917 | 20 430 316 917 508 . 397 594 Average Influence 354 | 6 264 201 640 305 . 178 168 Maximum Alert Level 3 | . 2 1 3 2 . 1 2 Low Security (%) 34 | 100 30 46 7 41 . 45 66 Level 1 33 | . 47 53 14 26 . 54 27 Level 2 11 | . 21 . 15 31 . . 5 Level 3 20 | . . . 62 . . . . Level 4 . | . . . . . . . . Level 5 . | . . . . . . . . High Security . | . . . . . . . . Max Security . | . . . . . . . . Squads Dispatched 7 | . 1 . 2 . . . 4 Investigation 3 | . 1 . 1 . . . 1 Extermination . | . . . . . . . . Reinforcement 2 | . . . 1 . . . 1 Assault 1 | . . . . . . . 1 Garrison 1 | . . . . . . . 1 Intercept . | . . . . . . . . Construction Impeded 1 | . . . . . . . 1 Haulers Reinforced . | . . . . . . . . Stealth | -11 -10 -10 -9 -9 -9 -8 -8 --------- Run | Scr Mat Min Mat Min Exi Min Mat Distress Signals 5 | . . . 4 . . . 1 Communications Jammed . | . . . . . . . . Distress Signals . | . . . . . . . . Times Spotted 150 | . 20 33 46 10 . 16 25 Peak Tracking Total 9 | . 4 9 7 4 . 9 6 Tactical Retreats 12 | . 2 5 1 1 . 3 . Traps | -11 -10 -10 -9 -9 -9 -8 -8 ------- Run | Scr Mat Min Mat Min Exi Min Mat Traps Triggered 1 | . 1 . . . . . . Indirectly . | . . . . . . . . Trap Hack Attempts . | . . . . . . . . Triggered . | . . . . . . . . Disarmed . | . . . . . . . . Reprogrammed 4 | . . . 4 . . . . Reused 2 | . . . 2 . . . . Traps Extracted . | . . . . . . . . Installed . | . . . . . . . . Triggered 2 | . . . 2 . . . . Machines | -11 -10 -10 -9 -9 -9 -8 -8 ---------- Run | Scr Mat Min Mat Min Exi Min Mat Machines Disabled 43 | . 16 1 13 4 . 6 3 Max in Single Turn 4 | . 2 1 4 1 . 1 1 Garrison Access 1 | . . . . . . . 1 Machines Sabotaged . | . . . . . . . . Garrisons Compromised . | . . . . . . . . Overloaded Fab Kills . | . . . . . . . . Fab Network Shutdowns . | . . . . . . . . Hacking | -11 -10 -10 -9 -9 -9 -8 -8 --------- Run | Scr Mat Min Mat Min Exi Min Mat Machines Accessed 25 | . 3 . 16 . 1 . 5 Terminals 17 | . 3 . 11 . . . 3 Fabricators . | . . . . . . . . Repair Stations 2 | . . . 1 . . . 1 Recycling Units 2 | . . . 2 . . . . Scanalyzers 3 | . . . 2 . . . 1 Garrison Access . | . . . . . . . . Total Hacks 105 | . 12 . 62 . 1 . 30 Successful 76 | . 7 . 47 . 1 . 21 Failed 29 | . 5 . 15 . . . 9 Catastrophic 2 | . 1 . 1 . . . . Database Lockouts . | . . . . . . . . Manual 54 | . 11 . 30 . 1 . 12 Terminals 79 | . 12 . 42 . . . 25 Fabricators . | . . . . . . . . Repair Stations 5 | . . . 3 . . . 2 Recycling Units 7 | . . . 7 . . . . Scanalyzers 13 | . . . 10 . . . 3 Garrison Access . | . . . . . . . . Terminal Hacks 32 | . 4 . 14 . 1 . 13 Record 3 | . . . . . . . 3 Robot Analysis 3 | . 2 . . . . . 1 Prototype ID Bank 3 | . . . 3 . . . . Branch Access Points 1 | . . . . . . . 1 Terminal Index 2 | . . . 1 . . . 1 Alert Level 5 | . 1 . 2 . . . 2 Unreport Threat 5 | . . . 4 . . . 1 Locate Traps 2 | . 1 . . . . . 1 Reprogram Traps 1 | . . . 1 . . . . Hauler Manifests 2 | . . . 1 . . . 1 Registered Components 1 | . . . . . . . 1 Registered Prototypes 1 | . . . . . . . 1 Zone Layout 2 | . . . 2 . . . . EX-Prototype ID Bank 1 | . . . . . 1 . . Fabricator Hacks . | . . . . . . . . Repair Station Hacks 4 | . . . 2 . . . 2 Scan Component 2 | . . . 1 . . . 1 Repair 2 | . . . 1 . . . 1 Recycling Unit Hacks 4 | . . . 4 . . . . Report Inventory 2 | . . . 2 . . . . Retrieve Components 2 | . . . 2 . . . . Scanalyzer 11 | . . . 9 . . . 2 Insert Component 4 | . . . 3 . . . 1 Analyze 7 | . . . 6 . . . 1 Garrison Access Hacks . | . . . . . . . . Unauthorized Hacks 57 | . 8 . 41 . . . 8 Terminals 23 | . 3 . 16 . . . 4 Assimilate 4 | . . . 4 . . . . Botnet 16 | . 2 . 11 . . . 3 Operators 3 | . 1 . 1 . . . 1 Fabricators . | . . . . . . . . Repair Stations . | . . . . . . . . Recycling Units 2 | . . . 2 . . . . Reject 1 | . . . 1 . . . . Mask 1 | . . . 1 . . . . Scanalyzers . | . . . . . . . . Garrison Access . | . . . . . . . . Data Cores Recovered . | . . . . . . . . Used . | . . . . . . . . Hacking Detections 21 | . 3 . 14 . . . 4 Full Trace Events 2 | . . . 1 . . . 1 Feedback Events . | . . . . . . . . Feedback Blocked . | . . . . . . . . Robot Schematics Acquired . | . . . . . . . . Robots Built . | . . . . . . . . Matter . | . . . . . . . . Time . | . . . . . . . . Total Robot Build Rating . | . . . . . . . . Part Schematics Acquired 4 | . . . 3 . . . 1 Parts Built . | . . . . . . . . Matter . | . . . . . . . . Time . | . . . . . . . . Total Part Build Rating . | . . . . . . . . Parts Repaired 2 | . . . 1 . . . 1 Time 89 | . . . 51 . . . 38 Parts Recycled . | . . . . . . . . Recycled Matter . | . . . . . . . . Retrieved Matter . | . . . . . . . . Retrieved Components 16 | . . . 16 . . . . Parts Scanalyzed 4 | . . . 3 . . . 1 Part Schematics Acquired 4 | . . . 3 . . . 1 Parts Damaged . | . . . . . . . . Bothacking | -11 -10 -10 -9 -9 -9 -8 -8 ------------ Run | Scr Mat Min Mat Min Exi Min Mat Used RIF Installer . | . . . . . . . . Robots Hacked . | . . . . . . . . Non-combat . | . . . . . . . . Combat . | . . . . . . . . Robot Hacks Applied . | . . . . . . . . Relay Couplers Released 1 | . . . . . . . 1 Machine Destruction 1 | . . . . . . . 1 Robots Rewired . | . . . . . . . . Allies Hacked . | . . . . . . . . Hacks Repelled . | . . . . . . . . Allies | -11 -10 -10 -9 -9 -9 -8 -8 -------- Run | Scr Mat Min Mat Min Exi Min Mat Total Allies 6 | . . 1 2 3 . . . Largest Group 5 | . . 1 2 5 5 1 . Highest-Rated Group 60 | . . 31 20 60 59 9 . Highest-Rated Ally 31 | . . 31 10 16 16 9 . Total Orders . | . . . . . . . . Ally Attacks 24 | . . 8 . 16 . . . Total Damage 319 | . . 105 . 214 . . . Kills 5 | . . 1 . 4 . . . Allies Corrupted . | . . . . . . . . Allies Melted . | . . . . . . . . Intel | -11 -10 -10 -9 -9 -9 -8 -8 ------- Run | Scr Mat Min Mat Min Exi Min Mat Robot Analysis Total 3 | . 2 . . . . . 1 Derelict Logs Recovered 1 | . . . . 1 . . . Drone Launches . | . . . . . . . . Drone Recoveries . | . . . . . . . . Exploration | -11 -10 -10 -9 -9 -9 -8 -8 ------------- Run | Scr Mat Min Mat Min Exi Min Mat Turns Passed 4303 | 97 647 680 1361 344 207 500 467 Spaces Moved 5268 | 64 598 1138 1624 407 368 645 424 Core 24 | 23 1 . . . . . . Treads 6 | . 6 . . . . . . Legs . | . . . . . . . . Wheels 307 | 41 266 . . . . . . Hover 3359 | . . 61 1454 407 368 645 424 Flight 1572 | . 325 1077 170 . . . . Fastest Speed 34 | 50 34 34 34 56 56 56 58 Average Speed 53 | 91 60 38 54 56 56 57 58 Slowest Speed 200 | 150 200 80 120 56 56 58 58 Overloaded Moves . | . . . . . . . . Propulsion Burnouts . | . . . . . . . . Robots Hopped 9 | . . 8 1 . . . . Cave-ins Triggered . | . . . . . . . . Exploration Rate (%) 64 | 4 66 99 97 49 71 91 41 Regions Visited 7 Branch Regions 4 Pre-discovered Areas 1 | . . . . 1 . . . Known Exits Taken 6 | . 1 1 1 1 1 1 . Unknown Exits Taken 1 | 1 . . . . . . . Scrap Searched 5 | . . 2 . . . 3 . Spaces Dug 200 | . 11 187 . . . 2 . Terrain Destroyed 913 | . 134 543 79 29 . 51 77 Melee 2 | . . . . . . 2 . Projectile 3 | . . . 1 . . . 2 AOE 908 | . 134 543 78 29 . 49 75 Actions | -11 -10 -10 -9 -9 -9 -8 -8 --------- Run | Scr Mat Min Mat Min Exi Min Mat Total 6262 | 79 769 1276 1974 501 369 714 580 Wait 308 | . 7 25 127 56 . 14 79 Move 5245 | 63 597 1123 1621 406 367 644 424 Hop 7 | . . 6 1 . . . . Pick Up 21 | . 3 2 8 1 1 3 3 Fast Attach 41 | 6 11 4 13 . . 2 5 Attach 8 | . . . 4 . . 2 2 Detach 3 | . 1 . . . . 1 1 Swap 23 | . 5 6 5 . . 2 5 Drop 53 | . 13 7 20 1 1 2 9 Fire 406 | 10 117 91 128 22 . 13 25 Melee 51 | . . . . . . 30 21 Ram 1 | . . . 1 . . . . Kick . | . . . . . . . . Crush . | . . . . . . . . Escape Stasis . | . . . . . . . . Rewire . | . . . . . . . . Trap . | . . . . . . . . Miscellaneous 95 | . 15 12 46 15 . 1 6 Route ------- -11/Scrapyard -10/Materials (discovered 2 exits: *Mat / *Min) -10/Mines (discovered 2 exits: *Mat x2) -9/Materials (discovered 6 exits: *Mat x3 / *Min / *Sto x2) -9/Mines (discovered 3 exits: *Mat x2 / *Exi) -9/Exiles -8/Mines (discovered 2 exits: *Mat x2) -8/Materials (discovered 1 exit: [*Fac]) History --------- Turn | Location | Event 5 | -11/Scrapyard | Upgraded with Propulsion slot (x1) 5 | -11/Scrapyard | Upgraded with Utility slot (x1) 5 | -11/Scrapyard | Upgraded with Weapon slot (x1) 18 | -11/Scrapyard | Discovered new exit (range 16) 98 | -11/Scrapyard | Entered Materials 154 | -10/Materials | Discovered new exit (range 8) 309 | -10/Materials | Build established: Mutant 361 | -10/Materials | Upgraded with Utility slot (x1) 459 | -10/Materials | Reached level 2 514 | -10/Materials | Upgraded with Propulsion slot (x1) 537 | -10/Materials | Discovered new exit (range 16) 548 | -10/Materials | Identified exit to Materials 744 | -10/Materials | Identified exit to Mines 745 | -10/Materials | Entered Mines 762 | -10/Mines | Discovered exit to Materials (range 5) 778 | -10/Mines | Reached level 3 784 | -10/Mines | Assembled infested the area 789 | -10/Mines | Assisted by a Guerilla fighting off Assembled 809 | -10/Mines | Upgraded with Utility slot (x1) 935 | -10/Mines | Core integrity fell below 50% 984 | -10/Mines | Received a Rocket Launcher from a helpful Derelict 985 | -10/Mines | Destroyed 7 combat bots 1020 | -10/Mines | Discovered exit to Materials (range 9) 1023 | -10/Mines | Received a Mining Laser from a helpful Derelict 1121 | -10/Mines | Build established: Scavenger-Mutant 1425 | -10/Mines | Entered Materials 1427 | -9/Materials | Reached level 4 1428 | -9/Materials | Upgraded with Utility slot (x1) 1540 | -9/Materials | Reached level 5 1560 | -9/Materials | Discovered new exit (range 15) 1708 | -9/Materials | Reached level 6 1735 | -9/Materials | Upgraded with Utility slot (x1) 1741 | -9/Materials | Destroyed 9 combat bots 1745 | -9/Materials | Identified exit to Mines 1885 | -9/Materials | Repaired Imp. Flight Unit 1909 | -9/Materials | Discovered new exit (range 15) 1916 | -9/Materials | Identified exit to Materials 2000 | -9/Materials | Discovered new exit (range 10) 2004 | -9/Materials | Reached level 7 2078 | -9/Materials | Identified exit to Storage 2268 | -9/Materials | Discovered exit to Materials (range 16) 2547 | -9/Materials | Reached level 8 2639 | -9/Materials | Upgraded with Utility slot (x1) 2649 | -9/Materials | Discovered exit to Materials (range 16) 2733 | -9/Materials | Discovered exit to Storage (range 6) 2786 | -9/Materials | Entered Mines 2786 | -9/Mines | Accompanied by 2 allies 2789 | -9/Mines | Assisted by bots powering up and referring to "LRC-V3" 2794 | -9/Mines | Discovered exit to Materials (range 11) 2825 | -9/Mines | Deemed a non-threat by the Exiles lab entrance 2826 | -9/Mines | Discovered new exit (range 5) 2827 | -9/Mines | Identified exit to Exiles 2841 | -9/Mines | Learned location of Storage (-9) 2868 | -9/Mines | Joined a pair of Derelicts in attacking an 0b10 outpost 3020 | -9/Mines | Reached level 9 3035 | -9/Mines | Discovered exit to Materials (range 6) 3130 | -9/Mines | Entered Exiles 3130 | -9/Exiles | Accompanied by 5 allies 3144 | -9/Exiles | Met 8R-AWN 3153 | -9/Exiles | Met EX-HEX 3171 | -9/Exiles | Met EX-BIN 3178 | -9/Exiles | Aligned with FarCom system 3178 | -9/Exiles | Given EX-Vault access code 3192 | -9/Exiles | Opened EX-Vault 3234 | -9/Exiles | Warned to stay clear of 0b10 Research branches 3253 | -9/Exiles | Met EX-DEC 3330 | -9/Exiles | Discovered new exit (range 12) 3336 | -9/Exiles | Identified exit to Mines 3337 | -9/Exiles | Entered Mines 3337 | -8/Mines | Accompanied by 1 ally 3361 | -8/Mines | Discovered exit to Materials (range 16) 3414 | -8/Mines | Upgraded with Weapon slot (x1) 3538 | -8/Mines | Reached level 10 3572 | -8/Mines | Destroyed 8 combat bots 3574 | -8/Mines | Upgraded with Utility slot (x1) 3806 | -8/Mines | Upgraded with Power slot (x1) 3829 | -8/Mines | Discovered exit to Materials (range 13) 3837 | -8/Mines | Entered Materials 3839 | -8/Materials | Reached level 11 3847 | -8/Materials | Upgraded with Weapon slot (x1) 4006 | -8/Materials | Discovered new exit (range 3) 4107 | -8/Materials | Core integrity fell below 50% 4109 | -8/Materials | Reached level 12 4163 | -8/Materials | Upgraded with Weapon slot (x1) 4207 | -8/Materials | Garrison activated, responded to threat 4243 | -8/Materials | Core integrity fell below 20% 4264 | -8/Materials | Destroyed 8 combat bots 4298 | -8/Materials | Repaired Imp. Light Armor Plating? 4304 | -8/Materials | Destroyed by G-47 Trooper with Particle Gun Last Messages --------------- 04266_ U-05 Engineer lays Concrete. 04278_ The unstable cave ceiling collapses. 04278_ C-30 ARC bursts open, deploying its payload. 04278_ G-50 Soldier unfolds itself. 04278_ G-47 Trooper unfolds itself. 04278_ U-05 Engineer lays Concrete. 04279_ U-05 Engineer builds a Door. 04279_ U-05 Engineer lays Concrete. 04280_ U-05 Engineer builds a Wall. 04281_ U-05 Engineer lays Concrete. 04282_ U-05 Engineer builds a Wall. 04285_ The unstable cave ceiling collapses. 04285_ Dropped Rocket Launcher. 04287_ U-05 Engineer builds a Wall. 04298_ >> REPAIR: Completed Imp. Light Armor Plating? 04299_ G-50 Soldier destroyed. 04303_ Y-45 Defender destroyed. 04303_ ALERT: Garrison Access compromised, dispatching assault squad. 04303_ Garrison Access disabled. 04303_ Relay Coupler [Hunter] tumbles out of Garrison Access. Map ----- +----------------------------------------------------+ | ??# # #??????# """ #??? # | | ??# """ # #??????#! #????? + | | ??# """ # """ #??????# "" "" #??????# | | ??# """ # """ #??????# ""S"" #??????# | | ??# # """ #??????#[ """" #??????# ## | | ??#+###### #??????# ##??#### #? | | ??# ###### ########### # # #### #? | | ??# """ / ][ #? | | ??# """ [ #? | | ??# """ [= #? | | ??# ########### ##### # | | ### """ #???????# [# ## # | | # """ """ #???????## *=##### # | | # """ """ #??????#### ###?# /%%%# | | # """ #??????# # ##### !% ## | | " + #??????# # # ## % | | " # #??????# ## ## | | " # ######## ########??########% # ## | | # #??????# #?????????# # # ######+#### | | + #??????# #?????????#% "" # # #### | | ### #??????# #?????????# """ + #??? | | ### ######## #######???#[ " # # #??? | | [ # # #???# # """ #??? | | # #! #???# ] # """ """ #??? | | ] # #[[ ########+### % "R """ #??? | | ] + #%[! ##= @ % g # """ !#??? | | # #[= ## [ # ! #??? | | # # ## ! # % ##+#####??? | | #####+## ## = =# "%"??????? | | ##### #???# ## //= %g= " ?????? | | #???# #???# = ## /== !#! "" ???? | | #???# #???# ## /= # G" ###???? | | #???# #???# ## # " #?????? | | #####+##### ############ ! w #?????? | | + + ##+##+#??????????+ ! #?????? | | # ! # #? ???????????? # ?????? | | # # "T" #?^ ??????????" # #?????? | | + """ # #?? ?????????"?#= #?????? | | # """ # #?? ^??????????# #####+##?????? | | #= """ # #??^ "??????????# ?????????????? | | ######## #??? ^""?????????? ?????????????? | | #??????# """ #??? ???????????? ?????????????? | | ######## """ #???? ??????????????????????????? | | """ #???? ??????????????????????????? | | #????##+#?????????????????????????? | | #?????????????????????????????????? | | #???????????^?????????????????????? | | #####+##########???????????^?????????????????????? | | #?# #?????????????????^?????????????????????? | | #?# #???????????????????????????????????????? | +----------------------------------------------------+ Best States ------------- Heat Dissipation 69 Coolant Potential 50 Energy Generation 28 Energy Capacity 460 Matter Stores 300 Matter Capacity 300 Sight Range 20 Terrain Scan Density 10 Additional Mass Support 6 Armor Coverage 225 Resistance: EX 25 Evasion (%) 63 Targeting Accuracy 10 Armor Integrity Analysis 33 Recoil Reduction 1 Offensive Hacking 15 Defensive Hacking 10 Item Schematics ----------------- Cmb. Airjet | -9/Materials | Scanalyzed Imp. Flight Unit | -9/Materials | Scanalyzed Cld. Ion Engine | -9/Materials | Scanalyzed Adv. Beam Cannon | -8/Materials | Scanalyzed Robot Schematics ------------------ None Fabricated ------------ Nothing Alien Tech Used ----------------- None Achievements -------------- None Challenges ------------ None RPGLIKE | -11 -10 -10 -9 -9 -9 -8 -8 --------- Run | Scr Mat Min Mat Min Exi Min Mat Levels Raised 11 | . 1 1 5 1 . 1 2 XP Earned 20877 | 3000 2487 1025 7188 1552 169 2150 3306 XP Spent 19475 | 1500 2450 1850 6675 . . 3600 3400 Upgrades 29 | 3 5 2 8 . . 3 8 Power Slot 1 | . . . . . . 1 . Propulsion Slot 2 | 1 1 . . . . . . Utility Slot 7 | 1 1 1 3 . . 1 . Weapon Slot 4 | 1 . . . . . 1 2 Core Integrity 1 | . . . 1 . . . . Heat Dissipation 5 | . . . 1 . . . 4 Energy Generation 1 | . . . 1 . . . . Mass Support 1 | . 1 . . . . . . Inventory Capacity 4 | . 2 1 1 . . . . Melee Accuracy 2 | . . . . . . . 2 Hack Attack % 1 | . . . 1 . . . . Protomatter Created 776 | . 126 18 457 32 . -4 147 Integrity Restored 1852 | . 257 258 971 240 . -12 138 Core 1554 | . 205 258 854 111 . -12 138 Parts 298 | . 52 . 117 129 . . . Protomatter Decayed 176 | . 31 9 72 64 . . . Game ------ Seed TachyonHardcellReconstructor Manual? 0 Play Time 01:20:14 Cumulative 67.3 hours Start 2020.03.29 @ 19:48:19 End 2020.03.29 @ 21:10:21 Sessions 1 Manual Loads 0 Difficulty Rogue Special Mode Winter2019/RPGLIKE Game No. 21 Rogue 21 Adventurer 0 Explorer 0 Win Type - Total 1 Types 1/0/0/0/0/0/0 Lore% 45 Gallery% 52 Achievement% 55 Wizard Run 0 Options --------- ASCII 1 Keyboard 1 Movement Numpad Keybinds 0 Fullscreen 1 Font 16/SmallcapsGlow Map View 75x55 Tactical HUD 1 Map Filters NONE Filters NONE Steam 1 RUN: ff6823ec-d3f0-4223-be16-88f1d240e143